bitfinex/quotes_SOLUSD_20240626
["timestamp","ask_amount","ask_price","bid_price","bid_amount"]
[1719372870779,23.73984262,138.35,138.29,3.79e-05]
[1719372870780,7.2306,138.3,138.29,3.79e-05]
[1719372870991,27.2306,138.3,138.29,3.79e-05]
[1719372874100,7.2294,138.33,138.29,3.79e-05]
[1719372875079,14.7468329,138.37,138.31,7.2298]
[1719372875284,7.2264,138.39,138.32,0.34]
[1719372875583,58.818,138.44,138.29,3.79e-05]
[1719372875796,18.0656,138.39,138.29,0.1700379]
[1719372875978,7.2284,138.35,138.3,0.17]
[1719372876183,7.2284,138.35,138.3,0.34]
[1719372876533,7.2286,138.34,138.3,0.34]
[1719372876709,7.2286,138.34,138.3,0.17]
[1719372877005,7.2286,138.34,138.29,0.3400379]
[1719372877186,18.0656,138.39,138.29,0.3400379]
[1719372877187,7.2291,138.33,138.29,0.1700379]
[1719372877584,18.068,138.37,138.29,0.1700379]
[1719372877585,18.068,138.37,138.29,3.79e-05]
[1719372877786,20.0,138.36,138.29,3.79e-05]
[1719372877995,7.2296,138.32,138.29,3.79e-05]
[1719372878306,7.2287,138.34,138.29,3.79e-05]
[1719372878993,7.2287,138.34,138.29,0.1700379]
[1719372879306,7.228,138.35,138.3,7.4002]
[1719372879503,7.228,138.35,138.29,18.2469379]
[1719372879504,7.50205513,138.4,138.31,18.0745]
[1719372879706,38.0659,138.39,138.29,7.2311379]
[1719372879904,7.2281,138.35,138.3,0.34]
[1719372880206,7.2285,138.34,138.3,0.34]
[1719372881391,38.0659,138.39,138.29,3.79e-05]
[1719372881392,18.0678,138.37,138.29,3.79e-05]
[1719372881595,7.2296,138.32,138.29,3.79e-05]
[1719372881995,18.0705,138.35,138.29,3.79e-05]
[1719372882709,7.2299,138.32,138.29,3.79e-05]
[1719372884431,18.0705,138.35,138.29,3.79e-05]
[1719372884432,7.2306,138.3,138.29,3.79e-05]
[1719372890224,27.2306,138.3,138.29,3.79e-05]
[1719372891001,7.2306,138.3,138.29,3.79e-05]
[1719372891732,7.2302,138.31,138.29,3.79e-05]
[1719372892223,7.2306,138.3,138.29,3.79e-05]
[1719372893000,27.2306,138.3,138.29,3.79e-05]
[1719372895418,27.4006,138.3,138.29,3.79e-05]
[1719372895929,27.2306,138.3,138.29,3.79e-05]
[1719372897927,27.2306,138.3,138.15,0.8678379]
[1719372897928,36.1589,138.28,138.15,0.8678379]
[1719372898129,44.93735916,138.27,138.15,0.8678379]
[1719372898333,7.234,138.24,138.18,7.2368]
[1719372898630,23.75074262,138.27,138.18,13.7279]
[1719372898935,7.2341,138.24,138.18,6.491]
[1719372899131,7.2343,138.23,138.18,6.491]
[1719372899316,23.75074262,138.27,138.18,6.491]
[1719372899317,7.2349,138.22,138.18,6.491]
[1719372899522,58.09814262,138.29,138.18,6.491]
[1719372899730,7.235,138.22,138.18,6.491]
[1719372900033,18.084,138.25,138.15,18.9635379]
[1719372900339,7.2358,138.21,138.15,0.8678379]
[1719372900535,9.26791654,138.25,138.16,7.2379]
[1719372900743,7.2353,138.21,138.15,18.9635379]
[1719372901232,7.50205513,138.25,138.15,18.9635379]
[1719372901546,20.0,138.24,138.15,18.9635379]
[1719372901731,20.0,138.24,138.16,0.17]
[1719372902033,20.0,138.24,138.16,0.34]
[1719372902228,7.2354,138.21,138.16,0.34]
[1719372902426,7.2364,138.2,138.15,0.8678379]
[1719372902629,7.2353,138.22,138.16,7.2379]
[1719372902932,7.2353,138.22,138.15,0.8678379]
[1719372902933,7.50205513,138.25,138.15,0.8678379]
[1719372903112,23.75074262,138.27,138.16,18.094]
[1719372903319,7.2344,138.23,138.17,7.237]
[1719372903639,7.2349,138.22,138.17,7.237]
[1719372903813,7.2349,138.22,138.18,0.34]
[1719372904016,18.0837,138.25,138.15,8.1062379]
[1719372904228,7.2357,138.21,138.15,8.1062379]
[1719372904436,7.2359,138.2,138.15,0.8678379]
[1719372904738,18.0837,138.25,138.15,8.1061379]
[1719372904946,7.2344,138.23,138.17,7.2372]
[1719372905231,7.235,138.22,138.16,7.2379]
[1719372905440,7.2353,138.21,138.16,7.2379]
[1719372905655,7.2353,138.21,138.17,0.34]
[1719372906325,18.0837,138.25,138.17,0.17]
[1719372906527,18.0865,138.23,138.15,0.8678379]
[1719372906729,7.237,138.18,138.15,0.8678379]
[1719372907318,18.0892,138.21,138.15,0.8678379]
[1719372907525,7.2379,138.16,138.15,0.8678379]
[1719372907725,7.2376,138.17,138.15,0.8678379]
[1719372908927,7.2379,138.16,138.15,0.8678379]
[1719372910516,7.2375,138.17,138.15,0.8678379]
[1719372911236,6.63083226,138.21,138.15,0.8678379]
[1719372911437,18.088,138.22,138.15,0.8678379]
[1719372911626,7.2371,138.18,138.15,0.8678379]
[1719372912031,7.2374,138.17,138.15,0.8678379]
[1719372912340,7.2371,138.18,138.15,0.8678379]
[1719372913118,7.2362,138.2,138.15,0.8678379]
[1719372913432,7.236,138.2,138.15,8.1061379]
[1719372913633,7.2355,138.21,138.16,0.51697546]
[1719372913828,7.2348,138.22,138.16,7.75457546]
[1719372914136,7.237,138.18,138.15,6.9692379]
[1719372914434,7.2364,138.19,138.15,6.9692379]
[1719372915231,18.0872,138.22,138.15,6.9692379]
[1719372915631,7.2365,138.19,138.15,6.9692379]
[1719372915827,7.2365,138.19,138.15,0.8678379]
[1719372916034,7.2379,138.16,138.15,0.8678379]
[1719372916421,18.0908,138.2,138.15,0.8678379]
[1719372916422,7.2374,138.18,138.15,0.8678379]
[1719372918118,7.2376,138.17,138.15,0.8678379]
[1719372919444,7.2369,138.19,138.15,0.8678379]
[1719372919835,8.75369432,138.23,138.16,0.34]
[1719372920032,18.0855,138.24,138.15,0.8678379]
[1719372920336,25.3249,138.24,138.15,0.8678379]
[1719372920922,7.236,138.2,138.15,0.8678379]
[1719372921420,7.2394,138.24,138.15,0.8678379]
[1719372921627,7.2376,138.17,138.15,0.8678379]
[1719372922223,7.2379,138.16,138.15,0.8678379]
[1719372922745,7.2376,138.17,138.15,0.8678379]
[1719372926627,7.2371,138.18,138.15,0.8678379]
[1719372926846,18.0888,138.21,138.15,0.8678379]
[1719372927235,7.2373,138.18,138.15,0.8678379]
[1719372927435,26.84249432,138.21,138.15,0.8678379]
[1719372928138,7.2379,138.16,138.15,0.8678379]
[1719372929831,7.2376,138.17,138.15,0.8678379]
[1719372930240,7.2379,138.16,138.15,0.8678379]
[1719372931848,8.75369432,138.2,138.15,0.8678379]
[1719372932239,7.237,138.18,138.15,0.8678379]
[1719372935351,7.2376,138.17,138.15,0.8678379]
[1719372936659,7.2371,138.18,138.15,0.8678379]
[1719372940436,7.2364,138.19,138.15,0.8678379]
[1719372942151,7.2369,138.18,138.15,0.8678379]
[1719372942552,26.84369432,138.2,138.15,0.8678379]
[1719372942749,7.2379,138.16,138.15,0.8678379]
[1719372944660,7.2367,138.19,138.15,0.8678379]
[1719372945059,7.2369,138.18,138.15,0.8678379]
[1719372945254,7.2365,138.19,138.15,0.8678379]
[1719372946148,7.2369,138.18,138.15,0.8678379]
[1719372946748,8.75369432,138.2,138.15,0.8678379]
[1719372946749,7.2365,138.19,138.15,0.8678379]
[1719372948056,7.237,138.18,138.15,0.8678379]
[1719372949844,8.75369432,138.2,138.16,7.2375]
[1719372950047,12.90434262,138.22,138.17,7.2374]
[1719372950266,7.2344,138.23,138.17,7.2374]
[1719372950843,8.75369432,138.25,138.17,7.2374]
[1719372950844,7.235,138.22,138.17,7.2374]
[1719372951451,7.235,138.22,138.16,40.8169]
[1719372951651,7.235,138.22,138.17,0.17]
[1719372951970,7.2344,138.23,138.17,7.577]
[1719372952349,7.2336,138.25,138.18,18.0917]
[1719372952542,7.2336,138.25,138.19,7.406]
[1719372953163,7.2336,138.25,138.2,7.2358]
[1719372953363,5.66944262,138.26,138.22,41.9384]
[1719372953586,15.8447,138.3,138.22,16.617]
[1719372953587,7.2336,138.25,138.22,16.617]
[1719372953856,7.2327,138.26,138.22,16.617]
[1719372954167,7.2328,138.26,138.22,16.617]
[1719372955362,39.59194262,138.3,138.22,16.617]
[1719372955363,7.2333,138.25,138.22,16.617]
[1719372955942,7.2322,138.27,138.22,16.617]
[1719372956352,7.2322,138.27,138.22,23.8517]
[1719372956575,7.2322,138.27,138.22,29.9822]
[1719372956873,5.66944262,138.3,138.22,22.7475]
[1719372957477,7.2329,138.26,138.22,22.7475]
[1719372958058,23.74664262,138.3,138.22,22.7475]
[1719372958364,7.2332,138.25,138.22,22.7475]
[1719372958945,7.2341,138.24,138.22,22.7475]
[1719372959149,18.0799,138.28,138.13,15.1428]
[1719372959150,7.2376,138.17,138.13,15.1428]
[1719372959367,7.237,138.18,138.13,15.1428]
[1719372959770,7.2376,138.17,138.13,15.1428]
[1719372959986,7.2376,138.17,138.12,31.8489]
[1719372959987,13.2397,138.17,138.12,25.3392]
[1719372960176,7.2379,138.16,138.03,36.2224]
[1719372960353,27.2379,138.16,138.06,7.2431]
[1719372961047,7.2379,138.16,138.03,57.9324]
[1719372961248,7.2379,138.16,138.07,18.1059]
[1719372961876,7.2379,138.16,138.09,18.14640989]
[1719372962079,7.2379,138.16,138.1,6.5097]
[1719372962958,7.2379,138.16,138.1,13.7507]
[1719372963877,13.88154736,138.21,138.11,7.2405]
[1719372964047,7.2379,138.16,138.11,7.2405]
[1719372964670,7.2379,138.16,138.1,6.5097]
[1719372964893,7.2379,138.16,138.1,13.7506]
[1719372965253,7.2379,138.16,138.1,6.5097]
[1719372965666,7.87944736,138.2,138.11,7.2402]
[1719372965876,20.0,138.19,138.11,7.2402]
[1719372966066,7.2374,138.18,138.12,7.2399]
[1719372966274,7.87944736,138.2,138.1,24.6116]
[1719372966455,7.2376,138.17,138.11,7.2404]
[1719372966773,7.2379,138.16,138.1,31.8526]
[1719372967478,7.2379,138.16,138.1,6.5097]
[1719372968475,7.2379,138.16,138.09,15.18570989]
[1719372968775,32.90734262,138.16,138.15,3.79e-05]
[1719372970761,7.2411,138.1,138.09,0.04290989]
[1719372973065,7.2437,138.06,138.01,0.8678379]
[1719372973386,16.2801,138.14,137.89,100.0]
[1719372973387,101.84271478,138.05,137.89,18.1301]
[1719372973686,48.1116,138.04,137.91,18.1265]
[1719372973889,25.66944262,138.03,137.91,18.1265]
[1719372974262,25.66944262,138.03,137.87,37.1314379]
[1719372974263,5.66944262,138.03,137.87,37.1314379]
[1719372974466,30.0,138.01,137.96,7.2484]
[1719372974661,7.2453,138.02,137.96,7.2484]
[1719372975185,23.77864262,138.06,137.95,18.1216]
[1719372975397,7.2443,138.04,137.97,7.2474]
[1719372975684,7.2438,138.05,137.99,7.2468]
[1719372975860,7.2443,138.04,137.97,18.1187]
[1719372976060,7.2438,138.05,137.97,18.1187]
[1719372976267,7.2438,138.05,137.99,7.2466]
[1719372977277,12.91274262,138.06,137.99,7.2466]
[1719372977474,5.66944262,138.06,137.98,0.34]
[1719372977673,7.2426,138.08,137.98,0.34]
[1719372977890,7.2415,138.1,138.01,18.1133]
[1719372978100,8.24055847,138.11,138.02,7.4148]
[1719372978302,8.24055847,138.11,138.02,7.2448]
[1719372978507,13.91000109,138.11,138.02,7.2448]
[1719372979076,13.91000109,138.11,138.03,18.281]
[1719372979391,13.91000109,138.11,138.04,7.2441]
[1719372979566,13.91000109,138.11,138.03,18.111]
[1719372979772,13.91000109,138.11,138.03,25.3557]
[1719372980074,7.2417,138.09,138.03,25.3557]
[1719372980281,7.2422,138.08,138.03,25.3557]
[1719372980480,7.2422,138.08,138.01,0.17]
[1719372980695,7.2417,138.09,138.02,0.17]
[1719372981001,7.2412,138.1,138.04,7.2442]
[1719372982104,20.0,138.09,138.02,18.1122]
[1719372982602,20.0,138.09,138.02,25.3574]
[1719372982603,7.2428,138.07,138.02,25.3574]
[1719372982772,7.2417,138.09,138.02,18.1122]
[1719372982980,8.24055847,138.1,138.02,18.1122]
[1719372983291,7.2417,138.09,138.03,7.2446]
[1719372983704,7.2423,138.08,138.02,18.1122]
[1719372983891,7.2423,138.08,138.03,7.2447]
[1719372984200,7.2418,138.09,138.03,7.2447]
[1719372984397,7.2422,138.08,138.03,7.2447]
[1719372984984,7.2418,138.09,138.03,7.2447]
[1719372985597,7.2422,138.08,138.03,7.2447]
[1719372986301,7.2418,138.09,138.03,7.2447]
[1719372986992,7.2422,138.08,138.03,7.2447]
[1719372987509,7.2422,138.08,138.02,25.3573]
[1719372988813,8.24055847,138.1,138.04,18.1102]
[1719372989121,5.66944262,138.11,138.04,18.1102]
[1719372989796,5.66944262,138.11,138.04,25.3542]
[1719372991391,7.2413,138.1,138.05,7.2437]
[1719372992003,7.2407,138.11,138.05,7.2437]
[1719372992806,8.24055847,138.14,138.06,18.1077]
[1719372993007,7.2405,138.12,138.06,18.1077]
[1719372993309,7.2405,138.12,138.06,25.3507]
[1719372994881,15.47955847,138.14,138.09,7.2416]
[1719372995101,284.43335847,138.18,138.09,18.1039]
[1719372995406,7.2394,138.14,138.09,18.1039]
[1719372995605,4.53128589,138.17,138.1,7.241]
[1719372995801,7.2387,138.15,138.1,7.241]
[1719372996001,4.53128589,138.17,138.12,7.2396]
[1719372996207,7.238,138.16,138.11,7.2405]
[1719372996630,7.2381,138.16,138.11,7.2404]
[1719372997913,7.2381,138.16,138.1,25.5128]
[1719372998084,7.2381,138.16,138.11,0.17]
[1719372998289,9.3787152,138.18,138.09,0.17]
[1719372998290,27.4714152,138.18,138.09,0.17]
[1719372998490,7.2391,138.14,138.09,7.2414]
[1719372998690,7.2391,138.14,138.1,0.17]
[1719372998897,7.2387,138.15,138.1,7.4111]
[1719372999308,7.2381,138.16,138.1,7.4111]
[1719372999997,32.00270109,138.18,138.1,7.4111]
[1719372999998,7.2385,138.15,138.1,7.4111]
[1719373000404,7.2385,138.15,138.1,0.17]
[1719373000618,7.2385,138.15,138.09,18.1038]
[1719373001113,7.2381,138.16,138.11,7.2405]
[1719373003003,21.14740109,138.18,138.12,7.2398]
[1719373003210,8.24055847,138.18,138.14,7.2388]
[1719373003395,6.3179,138.21,138.13,25.3379]
[1719373003593,7.2365,138.19,138.13,25.3379]
[1719373004137,7.237,138.18,138.13,25.3379]
[1719373004799,18.0906,138.2,138.1,24.3045]
[1719373004996,8.24055847,138.19,138.1,24.3045]
[1719373005197,13.91000109,138.19,138.1,24.3045]
[1719373005397,7.239,138.14,138.1,24.3045]
[1719373005606,7.2386,138.15,138.1,24.3045]
[1719373006300,7.2395,138.13,138.08,7.2421]
[1719373006504,7.2381,138.16,138.1,7.2406]
[1719373006705,18.0925,138.18,138.09,25.3444]
[1719373006911,20.0,138.17,138.09,18.103]
[1719373007112,7.2383,138.16,138.11,7.2405]
[1719373007419,20.0,138.17,138.07,6.0999]
[1719373007605,20.0,138.17,138.07,13.3422]
[1719373007606,7.2396,138.13,138.07,13.3422]
[1719373008118,7.2396,138.13,138.08,7.2419]
[1719373008323,7.2391,138.14,138.08,7.2419]
[1719373008625,52.00440109,138.17,138.07,6.0999]
[1719373008626,7.2405,138.12,138.07,13.3425]
[1719373008806,7.2396,138.13,138.08,7.2419]
[1719373009007,52.00440109,138.17,138.09,7.2412]
[1719373009208,33.91000109,138.17,138.07,6.0999]
[1719373009515,21.14750109,138.17,138.12,7.2399]
[1719373009904,21.14750109,138.17,138.07,6.0999]
[1719373009905,7.238,138.16,138.11,7.2404]
[1719373010318,7.238,138.16,138.1,7.2409]
[1719373012622,7.2385,138.15,138.1,7.2409]
[1719373012822,7.2381,138.16,138.1,7.2409]
[1719373013021,13.91000109,138.17,138.12,7.2399]
[1719373013206,7.2381,138.16,138.11,25.3416]
[1719373014326,7.2385,138.15,138.11,18.1011]
[1719373014517,13.91000109,138.17,138.07,6.0999]
[1719373014518,7.2395,138.13,138.08,25.346]
[1719373014823,32.00400109,138.17,138.08,25.346]
[1719373015022,32.00400109,138.17,138.08,18.1044]
[1719373015023,8.24055847,138.16,138.08,18.1044]
[1719373015223,18.0966,138.15,138.07,6.0999]
[1719373015424,18.0966,138.15,138.06,7.2431]
[1719373015927,7.2407,138.11,138.06,7.2431]
[1719373016532,7.2402,138.12,138.06,7.2431]
[1719373017206,7.2402,138.12,138.07,7.2426]
[1719373017625,13.91000109,138.16,138.08,0.17]
[1719373017626,7.2394,138.14,138.08,0.17]
[1719373017833,7.2393,138.14,138.09,7.2415]
[1719373018043,7.2385,138.15,138.09,18.1038]
[1719373018325,7.2387,138.15,138.09,25.3452]
[1719373018545,13.91000109,138.16,138.09,18.1038]
[1719373018708,7.2391,138.14,138.09,18.1038]
[1719373019348,7.2397,138.13,138.08,7.2417]
[1719373019912,7.2397,138.13,138.07,7.2425]
[1719373020120,7.2402,138.12,138.07,7.2425]
[1719373020348,7.2416,138.1,138.04,22.6483]
[1719373020519,7.2412,138.1,138.04,29.892]
[1719373020845,7.2412,138.1,138.05,7.2436]
[1719373021821,7.2407,138.11,138.06,7.2428]
[1719373022210,7.2396,138.13,138.05,18.2784]
[1719373022546,7.2402,138.12,138.07,7.2425]
[1719373022712,7.2397,138.13,138.07,7.2425]
[1719373023044,7.2397,138.13,138.07,25.3489]
[1719373023215,7.2402,138.12,138.07,25.3489]
[1719373024248,7.2396,138.13,138.07,25.3489]
[1719373024609,7.2396,138.13,138.08,7.2419]
[1719373024810,7.2392,138.14,138.09,7.2415]
[1719373025229,22.7564,138.15,138.07,25.3486]
[1719373025733,22.7564,138.15,138.08,7.2421]
[1719373025918,22.7564,138.15,138.07,25.349]
[1719373026732,22.7564,138.15,138.07,18.1064]
[1719373026935,22.7564,138.15,138.08,7.242]
[1719373027321,22.7564,138.15,138.07,18.1064]
[1719373027322,7.2399,138.13,138.07,25.3489]
[1719373027722,7.2402,138.12,138.07,25.3489]
[1719373027928,7.2401,138.12,138.07,18.1064]
[1719373028329,7.2397,138.13,138.07,25.3487]
[1719373028529,7.2389,138.15,138.07,18.1064]
[1719373028728,8.24055847,138.16,138.11,7.2402]
[1719373028729,7.238,138.16,138.11,7.2402]
[1719373029329,7.2385,138.15,138.1,7.241]
[1719373029739,30.296658,138.19,138.11,18.1008]
[1719373029942,8.24055847,138.2,138.1,0.34]
[1719373030140,7.2367,138.19,138.14,7.2386]
[1719373030552,7.2367,138.19,138.13,7.2394]
[1719373030934,7.2367,138.19,138.14,7.2389]
[1719373031240,7.237,138.18,138.13,7.2391]
[1719373031748,7.236,138.2,138.14,25.5057]
[1719373031950,7.236,138.2,138.15,7.2384]
[1719373032160,48.38345847,138.23,138.15,7.2384]
[1719373032161,7.2355,138.21,138.15,7.2384]
[1719373032323,7.236,138.2,138.15,7.2384]
[1719373032523,7.236,138.2,138.13,0.17]
[1719373032524,8.24055847,138.23,138.16,0.69232594]
[1719373032749,8.24055847,138.23,138.13,0.17]
[1719373032750,15.47505847,138.23,138.13,36.3671]
[1719373032935,15.47505847,138.23,138.17,7.2373]
[1719373032936,7.2349,138.22,138.17,7.2373]
[1719373034338,7.2354,138.21,138.16,7.2378]
[1719373034860,7.2349,138.22,138.17,7.2373]
[1719373035367,8.24055847,138.23,138.18,8.67072152]
[1719373035368,15.47495847,138.23,138.18,8.67072152]
[1719373035654,8.24055847,138.23,138.18,8.67072152]
[1719373035872,8.24055847,138.23,138.19,18.0903]
[1719373036029,8.24055847,138.23,138.2,1.43361402]
[1719373036462,12.90284262,138.25,138.2,1.43361402]
[1719373036865,7.2339,138.24,138.19,18.0903]
[1719373037155,18.0849,138.24,138.15,6.0394]
[1719373037363,7.2362,138.2,138.15,6.0394]
[1719373037535,7.2358,138.21,138.15,13.2779]
[1719373037945,7.2358,138.21,138.16,7.2379]
[1719373038574,7.235,138.22,138.16,7.2379]
[1719373039657,7.235,138.22,138.17,7.2373]
[1719373042077,7.06358399,138.23,138.17,18.0928]
[1719373042258,7.2339,138.24,138.18,0.34]
[1719373043277,7.2339,138.24,138.19,7.2363]
[1719373044373,7.2339,138.24,138.18,7.5767]
[1719373044986,7.2343,138.23,138.18,7.5767]
[1719373045694,7.2339,138.24,138.18,7.5767]
[1719373045907,23.30025847,138.26,138.19,18.0901]
[1719373046093,7.2336,138.25,138.19,25.3263]
[1719373046270,7.2338,138.24,138.19,25.3263]
[1719373047102,7.2338,138.24,138.19,18.0901]
[1719373047603,7.2338,138.24,138.19,25.3263]
[1719373048274,7.2338,138.24,138.19,18.0901]
[1719373048591,7.236,138.2,138.15,6.0394]
[1719373048767,8.24055847,138.23,138.15,6.0394]
[1719373049075,8.24055847,138.23,138.15,31.3736]
[1719373049274,8.24055847,138.23,138.16,7.2379]
[1719373049275,7.2355,138.21,138.16,7.2379]
[1719373050470,7.2355,138.21,138.15,31.3736]
[1719373050673,7.2355,138.21,138.16,7.2378]
[1719373050867,15.47525847,138.23,138.17,7.2373]
[1719373051095,7.2348,138.22,138.17,7.2373]
[1719373052993,15.47495847,138.23,138.17,7.2373]
[1719373053195,7.2337,138.25,138.19,7.2362]
[1719373053701,13.91000109,138.28,138.22,7.2344]
[1719373053994,13.91000109,138.28,138.23,7.2341]
[1719373054193,13.91000109,138.28,138.24,7.2333]
[1719373054679,13.91000109,138.28,138.23,25.3195]
[1719373054993,13.91000109,138.28,138.25,7.2331]
[1719373055199,13.91000109,138.28,138.24,0.17]
[1719373055381,8.24055847,138.28,138.26,7.2323]
[1719373055592,281.3129,138.3,138.25,18.0822]
[1719373056873,15.47075847,138.31,138.25,18.0822]
[1719373057075,8.24055847,138.31,138.26,7.2326]
[1719373057269,8.24055847,138.31,138.26,7.4026]
[1719373058807,15.47065847,138.31,138.26,7.4026]
[1719373059111,8.24055847,138.31,138.27,7.2321]
[1719373059989,8.24055847,138.31,138.28,7.2315]
[1719373060189,8.24055847,138.31,138.27,25.3121]
[1719373060601,266.48719628,138.36,138.28,7.4014]
[1719373060602,7.2287,138.34,138.28,7.4014]
[1719373060798,8.24055847,138.35,138.28,7.4014]
[1719373060799,7.2291,138.33,138.28,7.4014]
[1719373061803,7.2298,138.32,138.28,0.17]
[1719373062007,7.2301,138.31,138.28,0.17]
[1719373062307,8.24055847,138.33,138.24,18.0834]
[1719373062497,5.66944262,138.35,138.24,18.0834]
[1719373062498,8.24055847,138.31,138.25,0.17]
[1719373062699,8.24055847,138.31,138.25,0.34]
[1719373062883,15.47075847,138.31,138.25,0.34]
[1719373063090,15.47075847,138.31,138.26,7.2326]
[1719373063615,15.47075847,138.31,138.26,7.2325]
[1719373069017,15.47075847,138.31,138.25,7.5731]
[1719373069308,7.2307,138.3,138.25,7.5731]
[1719373069709,15.47085847,138.31,138.25,7.5731]
[1719373070514,15.47085847,138.31,138.24,18.0834]
[1719373070515,7.2312,138.29,138.24,18.0834]
[1719373071201,16.1876,138.3,138.21,25.3225]
[1719373071404,7.2326,138.27,138.21,25.3225]
[1719373071768,7.2317,138.28,138.21,18.0877]
[1719373072220,7.2322,138.27,138.21,18.0877]
[1719373072401,7.2329,138.26,138.21,25.3227]
[1719373072722,7.2321,138.28,138.22,7.5743]
[1719373073016,7.2322,138.27,138.22,7.5743]
[1719373073398,18.0794,138.28,138.19,6.0645]
[1719373073608,18.0794,138.28,138.2,33.6938]
[1719373073609,7.2331,138.26,138.2,33.6938]
[1719373073803,7.2338,138.24,138.2,18.0895]
[1719373074323,7.2332,138.26,138.2,18.0895]
[1719373074894,7.2332,138.26,138.2,25.325]
[1719373075300,7.2333,138.25,138.2,25.325]
[1719373075526,7.2333,138.25,138.2,18.0895]
[1719373075702,7.2333,138.25,138.2,25.3253]
[1719373075905,7.2328,138.26,138.21,7.2352]
[1719373076320,7.2332,138.25,138.2,25.3253]
[1719373076716,7.2328,138.26,138.2,18.0895]
[1719373077214,7.2333,138.25,138.2,25.3249]
[1719373077915,7.2329,138.26,138.2,25.3249]
[1719373078749,7.2333,138.25,138.2,18.0895]
[1719373079214,7.2333,138.25,138.2,25.3252]
[1719373079418,7.2328,138.26,138.2,18.0895]
[1719373080337,7.2328,138.26,138.21,7.2352]
[1719373081410,7.2333,138.25,138.2,18.0895]
[1719373082018,7.2333,138.25,138.2,25.3253]
[1719373082608,7.2339,138.24,138.2,18.0895]
[1719373083033,13.91000109,138.28,138.16,24.5671]
[1719373083034,18.0835,138.25,138.16,24.5671]
[1719373083234,0.34,138.26,138.14,16.3319]
[1719373083436,7.2367,138.19,138.14,16.3319]
[1719373083744,7.2372,138.18,138.13,25.3372]
[1719373084915,22.6972,138.22,138.15,18.0957]
[1719373085935,7.2356,138.21,138.16,7.2378]
[1719373086114,7.2356,138.21,138.15,18.0957]
[1719373086115,7.2356,138.21,138.15,25.334]
[1719373086438,22.6972,138.22,138.15,18.0957]
[1719373086651,7.236,138.2,138.15,25.3341]
[1719373087451,7.2365,138.19,138.15,18.0957]
[1719373087611,7.236,138.2,138.15,18.0957]
[1719373088121,7.236,138.2,138.15,25.3341]
[1719373088738,8.24055847,138.22,138.15,18.0957]
[1719373088942,7.236,138.2,138.15,25.334]
[1719373089253,7.2371,138.18,138.14,0.17]
[1719373089450,7.2371,138.18,138.13,0.34]
[1719373090318,7.2371,138.18,138.13,7.5793]
[1719373091758,7.2364,138.19,138.14,7.2389]
[1719373092054,7.236,138.2,138.15,7.2383]
[1719373092261,8.24055847,138.22,138.14,18.097]
[1719373092555,20.0,138.21,138.14,25.3356]
[1719373093052,7.236,138.2,138.14,25.3356]
[1719373093255,7.2365,138.19,138.14,18.097]
[1719373093424,7.2365,138.19,138.15,0.17]
[1719373093742,20.0,138.21,138.15,0.17]
[1719373093946,7.236,138.2,138.15,7.4083]
[1719373094152,7.2364,138.19,138.15,0.17]
[1719373095245,7.2369,138.18,138.14,18.097]
[1719373096457,7.2369,138.18,138.13,7.5794]
[1719373096768,7.2369,138.18,138.14,0.17]
[1719373097559,7.2365,138.19,138.14,0.17]
[1719373097853,7.2365,138.19,138.14,7.409]
[1719373099374,7.2365,138.19,138.14,0.17]
[1719373099959,20.0,138.21,138.12,6.4214]
[1719373099960,38.0885,138.21,138.12,6.4214]
[1719373100166,7.238,138.16,138.12,6.4214]
[1719373101466,7.2376,138.17,138.12,6.4214]
[1719373101667,7.2376,138.17,138.12,13.6613]
[1719373102771,7.2387,138.15,138.12,6.4214]